bitfinex/quotes_ETHUSD_20251119
["timestamp","ask_amount","ask_price","bid_price","bid_amount"]
[1763544666734,0.1954,3077.9,3077.2,1.36899264]
[1763544666912,0.1954,3077.9,3077.2,0.462]
[1763544667111,0.1954,3077.9,3077.2,1.36899264]
[1763544668018,0.1954,3077.9,3077.2,0.90699264]
[1763544668319,0.1946,3077.9,3077.3,0.70392406]
[1763544669053,0.6814,3077.9,3077.3,0.70392406]
[1763544669258,0.6814,3077.9,3077.8,0.001]
[1763544669470,0.1946,3077.9,3077.8,0.001]
[1763544669645,0.694,3077.9,3077.8,0.001]
[1763544669875,0.9374,3077.9,3077.8,0.001]
[1763544670942,0.1618,3078.9,3077.8,0.001]
[1763544670943,0.1872,3078.2,3077.8,0.001]
[1763544671253,0.03278868,3079.6,3077.8,0.001]
[1763544671254,0.674,3079.9,3078.8,0.6907]
[1763544671464,0.03278868,3079.8,3078.2,0.112]
[1763544671680,0.51958868,3079.8,3078.0,0.90699264]
[1763544671881,0.405504,3079.7,3078.0,0.64264479]
[1763544672084,0.405504,3079.5,3077.8,0.001]
[1763544672260,0.405504,3079.3,3077.8,0.001]
[1763544672454,0.405504,3079.1,3077.8,0.001]
[1763544672777,0.1772,3077.9,3077.8,0.001]
[1763544672941,0.425,3077.9,3077.8,0.001]
[1763544673145,0.9095,3077.9,3077.8,0.001]
[1763544674444,1.315004,3077.9,3077.8,0.001]
[1763544675983,0.9095,3077.9,3077.8,0.001]
[1763544677093,1.315004,3077.9,3077.8,0.001]
[1763544677292,0.9095,3077.9,3077.8,0.001]
[1763544677898,1.315004,3077.9,3077.8,0.001]
[1763544678204,1.315004,3077.9,3076.0,0.1987]
[1763544678205,0.405504,3077.8,3076.0,0.1987]
[1763544678404,1.079504,3077.8,3076.0,0.1987]
[1763544678712,1.079504,3077.8,3075.7,0.4919]
[1763544679004,0.405504,3077.6,3075.7,0.4919]
[1763544679497,0.4868,3077.5,3075.8,0.03251186]
[1763544679701,0.405504,3077.4,3075.9,0.4919]
[1763544679995,0.4868,3077.5,3076.2,0.90699264]
[1763544680202,0.4868,3077.5,3076.3,0.68405406]
[1763544680496,0.4868,3077.5,3076.3,1.37225406]
[1763544680698,0.1872,3077.8,3076.4,0.4919]
[1763544681305,0.4868,3077.7,3076.4,0.4919]
[1763544681492,0.405504,3077.6,3076.3,0.88035406]
[1763544681666,0.405504,3077.6,3076.4,0.17873467]
[1763544681868,0.4868,3077.5,3076.4,0.17873467]
[1763544682077,0.03278868,3077.4,3076.4,0.17873467]
[1763544682301,0.405504,3077.3,3076.0,0.1963]
[1763544682904,0.4868,3077.2,3076.0,0.1963]
[1763544683584,0.4868,3077.2,3076.1,0.484]
[1763544683787,0.4898,3077.6,3076.4,0.90699264]
[1763544683964,0.4898,3077.6,3076.5,0.68405406]
[1763544684167,0.4898,3077.6,3076.5,1.16805406]
[1763544684386,0.03278868,3077.5,3076.5,0.68405406]
[1763544684576,0.4898,3077.5,3076.5,0.68405406]
[1763544684791,0.1872,3077.8,3076.9,0.90699264]
[1763544685108,0.1872,3077.8,3077.0,0.68405406]
[1763544685502,0.1872,3077.8,3077.1,0.1821]
[1763544687772,0.1892,3077.8,3077.1,0.1821]
[1763544687979,0.002,3077.8,3077.4,0.90699264]
[1763544688206,0.002,3077.8,3077.7,0.4849]
[1763544688593,0.002,3077.8,3077.7,0.9689]
[1763544689681,0.002,3077.8,3077.5,0.68405406]
[1763544690219,0.002,3077.8,3077.5,1.16805406]
[1763544690582,0.002,3077.8,3077.5,0.68405406]
[1763544690909,0.002,3077.8,3077.5,1.16805406]
[1763544691111,0.002,3077.8,3077.6,0.20750467]
[1763544692011,0.002,3077.8,3077.7,0.4849]
[1763544693073,0.002,3077.8,3077.7,0.9689]
[1763544693280,0.0012,3077.8,3077.7,0.9689]
[1763544694620,0.0012,3077.8,3077.6,0.20750467]
[1763544700444,0.7478,3077.7,3077.5,0.68405406]
[1763544700658,0.4951,3077.7,3076.9,0.1833]
[1763544700940,0.0012,3077.8,3076.9,0.6364]
[1763544702110,0.0012,3077.8,3077.0,0.327]
[1763544702542,0.0012,3077.8,3077.7,0.4553]
[1763544702930,0.0012,3077.8,3077.7,0.9084]
[1763544704254,0.0012,3077.8,3077.7,0.4553]
[1763544706752,0.0012,3077.8,3077.7,7.78143237]
[1763544706948,0.4975,3078.9,3077.7,7.78143237]
[1763544706949,0.4975,3078.9,3077.8,0.90699264]
[1763544707158,0.4975,3079.5,3078.3,0.90699264]
[1763544707447,10.27,3080.7,3078.3,0.90699264]
[1763544707448,0.4975,3079.2,3078.3,0.90699264]
[1763544707628,0.6801,3079.1,3078.3,0.90699264]
[1763544707825,0.6801,3079.1,3078.1,0.1427]
[1763544708021,0.53028868,3079.0,3078.0,0.1427]
[1763544708421,0.21578868,3078.9,3077.9,0.90699264]
[1763544708660,0.21578868,3078.9,3078.0,0.72936406]
[1763544708862,0.4975,3078.8,3078.0,0.72936406]
[1763544709159,0.03278868,3078.7,3077.6,0.5103]
[1763544709330,0.4975,3078.8,3077.8,0.4531]
[1763544711219,0.4975,3078.8,3077.6,0.5103]
[1763544711524,0.03278868,3078.7,3077.6,0.9634]
[1763544711752,0.4975,3078.8,3077.6,0.9634]
[1763544711953,0.1826,3079.1,3078.0,0.90699264]
[1763544712152,0.6801,3079.1,3078.1,0.73179231]
[1763544712359,0.6801,3079.1,3078.1,0.91509231]
[1763544712542,0.1826,3079.1,3078.2,0.4531]
[1763544712945,0.4975,3079.0,3078.1,0.91509231]
[1763544713161,0.4975,3079.0,3078.2,0.1822085]
[1763544713360,0.183,3078.9,3078.2,0.1822085]
[1763544714559,0.183,3078.9,3078.2,0.21469501]
[1763544714763,0.183,3078.9,3078.2,0.1822085]
[1763544716967,0.183,3078.9,3078.2,0.6353085]
[1763544717132,0.183,3078.9,3078.3,0.22049662]
[1763544718357,0.1822,3078.9,3078.3,0.22049662]
[1763544719079,0.4975,3079.7,3078.8,0.4553]
[1763544719244,0.183,3079.6,3078.9,0.4553]
[1763544719870,0.4975,3079.5,3078.6,0.90699264]
[1763544720078,0.4975,3079.5,3078.7,0.73179231]
[1763544720882,0.4975,3079.5,3078.4,0.4531]
[1763544721036,0.03278868,3079.4,3078.4,0.4531]
[1763544721560,0.4975,3079.3,3078.0,1.68709264]
[1763544721769,0.03278868,3079.2,3078.0,1.68709264]
[1763544721935,0.4975,3079.3,3078.2,0.327]
[1763544722131,0.4975,3079.2,3078.2,0.327]
[1763544722837,0.4975,3079.2,3078.2,0.51403926]
[1763544723483,0.03278868,3079.1,3078.2,0.51403926]
[1763544723675,0.4975,3079.0,3078.2,0.18703926]
[1763544723844,0.4975,3079.0,3077.9,0.327]
[1763544723845,0.03278868,3078.9,3077.9,0.327]
[1763544724042,0.21578868,3078.9,3077.9,0.327]
[1763544724350,0.4975,3078.8,3078.1,0.90699264]
[1763544725678,0.2552,3078.2,3077.6,0.5103]
[1763544725876,0.2552,3078.2,3077.6,0.9634]
[1763544726116,0.002,3079.2,3077.6,0.9634]
[1763544726117,0.002,3079.2,3078.1,0.6386]
[1763544726388,0.002,3079.2,3078.6,0.90699264]
[1763544726678,0.002,3079.2,3079.1,0.6386]
[1763544726877,0.002,3079.2,3079.1,1.0917]
[1763544728480,0.002,3079.2,3079.1,0.6386]
[1763544728986,0.002,3079.2,3079.1,0.4553]
[1763544729190,0.002,3079.2,3078.9,0.327]
[1763544729481,0.002,3079.2,3078.9,0.4743]
[1763544729681,0.002,3079.2,3078.8,0.327]
[1763544729901,0.4702,3079.2,3078.8,0.5235785]
[1763544730101,0.4702,3079.2,3078.5,0.327]
[1763544730272,0.4702,3079.2,3078.4,0.327]
[1763544730600,0.4702,3079.2,3078.5,0.327]
[1763544731214,0.03278868,3079.1,3078.0,0.90699264]
[1763544731512,0.03278868,3079.1,3078.2,0.327]
[1763544731801,0.4682,3079.0,3078.2,0.327]
[1763544732199,0.1927,3078.9,3078.2,0.327]
[1763544732697,0.4682,3078.8,3078.2,0.327]
[1763544733075,0.4682,3078.8,3078.1,0.327]
[1763544734272,0.4682,3078.8,3078.1,1.13892231]
[1763544736691,0.4702,3079.2,3078.2,0.9855]
[1763544737006,0.002,3079.2,3078.2,0.9855]
[1763544737210,0.4702,3079.2,3078.3,0.8013]
[1763544737617,0.002,3079.2,3078.4,0.8013]
[1763544737805,0.002,3079.2,3078.4,0.8337844]
[1763544738008,0.002,3079.2,3078.5,0.4743]
[1763544738183,0.002,3079.2,3078.7,0.90699264]
[1763544738387,0.002,3079.2,3078.8,0.98720767]
[1763544738600,0.002,3079.2,3078.8,0.95472749]
[1763544739109,0.002,3079.2,3079.0,0.90699264]
[1763544740518,0.002,3079.2,3079.1,0.4862]
[1763544740721,0.002,3079.2,3079.1,1.1447]
[1763544740924,0.002,3079.2,3079.1,1.73634926]
[1763544741730,0.002,3079.2,3079.1,8.4626231]
[1763544742628,0.002,3079.2,3079.1,1.39319264]
[1763544742918,0.2737,3079.2,3079.1,0.90699264]
[1763544743118,0.74,3079.2,3079.1,0.90699264]
[1763544743321,0.7392,3079.2,3078.6,3.8648]
[1763544743487,0.7392,3079.2,3078.7,1.29347264]
[1763544743925,0.4663,3079.1,3078.7,0.38648]
[1763544744110,0.4663,3079.1,3078.3,0.8013]
[1763544745207,0.4663,3079.1,3078.3,0.4743]
[1763544746510,0.2736,3078.4,3078.0,0.001]
[1763544748807,0.0047,3078.1,3078.0,0.001]
[1763544749539,0.4654,3078.4,3078.0,0.001]
[1763544751353,0.1915,3078.6,3078.0,0.001]
[1763544751750,0.6894,3078.6,3078.0,0.001]
[1763544754276,0.4979,3078.5,3078.0,0.001]
[1763544754986,0.2434,3078.1,3078.0,0.001]
[1763544755343,0.7388,3078.1,3078.0,0.001]
[1763544756247,1.144304,3078.1,3078.0,0.001]
[1763544756691,1.144304,3078.1,3077.5,0.001]
[1763544756898,0.832004,3077.6,3077.5,0.001]
[1763544757259,1.327304,3077.6,3077.5,0.001]
[1763544758469,0.9218,3077.6,3077.5,0.001]
[1763544758758,0.405504,3078.2,3077.5,0.001]
[1763544759100,10.4615,3078.6,3077.5,0.4882]
[1763544759101,0.4971,3078.4,3077.5,0.4882]
[1763544759297,0.1915,3078.6,3077.6,0.03249285]
[1763544759460,0.1915,3078.6,3077.5,0.4882]
[1763544760384,10.27,3079.4,3077.5,0.5206939]
[1763544760589,19.4006,3079.9,3077.5,0.5206939]
[1763544760590,0.1845,3078.9,3077.5,0.5206939]
[1763544760906,0.1845,3078.9,3077.5,0.4882]
[1763544761128,0.002,3078.6,3077.5,0.4882]
[1763544761480,0.4991,3078.6,3077.5,0.4882]
[1763544762594,0.43829268,3078.5,3077.5,0.001]
[1763544762920,0.43829268,3078.5,3077.5,0.47827926]
[1763544763082,0.4971,3078.4,3077.5,0.47827926]
[1763544764096,0.03278868,3078.3,3077.5,0.47827926]
[1763544764295,0.405504,3078.3,3077.5,0.001]
[1763544764504,0.4971,3078.2,3077.5,0.001]
[1763544765198,0.002,3078.6,3077.5,0.001]
[1763544765396,0.4971,3078.5,3077.5,0.4882]
[1763544766791,0.002,3078.6,3077.6,0.03249285]
[1763544767197,0.002,3078.6,3077.7,0.4872]
[1763544767703,0.405504,3079.2,3078.5,0.6754]
[1763544767904,0.86742375,3080.3,3079.8,0.4873]
[1763544768120,0.1845,3081.9,3080.2,7.08633046]
[1763544768121,0.4963,3081.8,3080.2,7.08633046]
[1763544768292,0.03278868,3081.7,3080.4,0.4873]
[1763544768614,0.1845,3081.9,3080.4,0.4873]
[1763544768778,0.03278868,3081.8,3080.4,0.4873]
[1763544768986,0.1845,3081.9,3080.4,0.4873]
[1763544769601,0.4841,3080.5,3079.9,0.1881]
[1763544769806,0.6686,3080.5,3079.9,0.1881]
[1763544771798,0.03278868,3080.4,3079.2,0.90699264]
[1763544772011,0.0027,3080.0,3079.2,0.4872]
[1763544772413,0.0027,3080.0,3079.2,1.39419264]
[1763544773121,0.1845,3079.9,3079.2,0.4872]
[1763544773326,0.03278868,3079.8,3078.8,0.4872]
[1763544773524,0.6816,3079.9,3078.8,0.4872]
[1763544773826,0.6816,3079.9,3078.8,1.12910609]
[1763544773988,0.6816,3079.9,3078.9,0.4872]
[1763544774692,0.4971,3079.8,3078.8,0.64190609]
[1763544774898,0.1845,3080.5,3079.6,5.93186089]
[1763544775108,0.4971,3080.4,3079.6,5.93186089]
[1763544775314,0.4395,3079.7,3079.2,0.90699264]
[1763544775707,0.4947,3080.1,3079.2,1.39419264]
[1763544775900,0.902604,3080.4,3079.2,2.07807799]
[1763544776111,0.902604,3080.4,3079.2,0.90699264]
[1763544776306,0.4971,3080.3,3079.2,0.90699264]
[1763544776543,0.4971,3080.3,3079.2,1.39419264]
[1763544778331,0.4971,3080.3,3079.2,5.25899264]
[1763544778528,0.03278868,3080.2,3079.2,0.90699264]
[1763544778934,0.4971,3080.1,3079.2,0.90699264]
[1763544781213,0.4395,3079.3,3079.2,0.90699264]
[1763544781429,0.4395,3079.3,3079.1,0.001]
[1763544781632,0.4996,3079.2,3079.1,0.001]
[1763544788207,0.905104,3079.2,3079.1,0.001]
[1763544788505,0.93789268,3079.2,3079.1,0.001]
[1763544789032,0.405504,3079.1,3078.8,0.001]
[1763544789230,0.657904,3078.9,3078.8,0.001]
[1763544789608,1.153004,3078.9,3078.8,0.001]
[1763544792437,0.405504,3078.9,3078.8,0.001]
[1763544792634,0.1845,3079.3,3078.8,0.5004]
[1763544792844,0.181,3079.5,3078.9,0.4725]
[1763544793240,0.1802,3079.5,3078.9,0.4725]
[1763544793441,0.1802,3079.5,3078.8,0.001]
[1763544793776,0.6753,3079.5,3078.8,0.001]
[1763544793911,0.181,3080.0,3078.8,0.001]
[1763544793912,0.4951,3079.9,3078.8,0.001]
[1763544794112,0.405504,3079.8,3078.8,0.4735]
[1763544794319,0.4951,3079.9,3078.8,0.4735]
[1763544794545,0.4951,3079.8,3078.8,0.4735]
[1763544794715,0.405504,3079.7,3078.8,0.4735]
[1763544795334,0.181,3080.0,3078.8,0.4735]
[1763544795523,0.405504,3079.9,3078.8,0.4735]
[1763544796149,0.181,3080.0,3078.8,0.4735]
[1763544797019,0.181,3080.0,3079.1,0.90699264]
[1763544797219,0.181,3080.0,3079.2,0.88078535]
[1763544797429,0.181,3080.0,3079.2,1.35328535]
[1763544797634,0.52788868,3079.9,3079.2,0.68388535]
[1763544797839,0.52788868,3079.9,3078.9,0.1969]
[1763544798036,0.4951,3079.9,3078.9,0.1969]
[1763544798245,0.2633,3079.0,3078.8,0.001]
[1763544798421,0.43829268,3079.8,3078.8,0.001]
[1763544798625,0.405504,3079.6,3078.8,0.001]
[1763544799250,0.405504,3079.4,3078.8,0.001]
[1763544799948,0.405504,3079.9,3079.0,0.001]
[1763544800150,0.4951,3079.4,3079.0,0.001]
[1763544800350,0.2633,3079.1,3079.0,0.001]
[1763544801122,0.756,3079.1,3079.0,0.001]
[1763544802645,1.161504,3079.1,3079.0,0.001]
[1763544807937,0.405504,3079.0,3078.7,0.001]
[1763544808239,0.884004,3078.8,3078.7,0.001]
[1763544808672,1.163704,3078.8,3078.7,0.001]
[1763544811656,1.19649268,3078.8,3078.7,0.001]
[1763544812684,1.163704,3078.8,3078.7,0.001]
[1763544812847,1.163704,3078.8,3077.5,0.001]
[1763544813049,0.459,3077.6,3077.5,0.001]
[1763544813252,0.864504,3077.6,3077.5,0.001]
[1763544813473,1.335604,3077.6,3077.5,0.001]
[1763544813684,1.335604,3077.6,3077.2,0.001]
[1763544813685,0.405504,3077.5,3077.2,0.001]
[1763544813883,0.672704,3077.3,3077.2,0.001]
[1763544814381,1.143804,3077.3,3077.2,0.001]
[1763544817179,1.143804,3077.3,3077.1,0.001]
[1763544817353,0.91139268,3077.2,3077.1,0.001]
[1763544817554,1.17859268,3077.2,3077.1,0.001]
[1763544818283,0.2672,3077.2,3077.1,0.001]
[1763544818482,0.1918,3077.6,3077.1,0.001]
[1763544818805,0.877204,3077.2,3077.1,0.001]
[1763544819591,0.405504,3077.2,3077.1,0.001]
[1763544819954,0.4696,3077.2,3077.1,0.001]
[1763544820505,0.1918,3077.6,3077.1,0.4527]
[1763544821499,0.6783,3077.6,3077.1,0.001]
[1763544821899,0.4865,3077.5,3077.1,0.001]
[1763544822574,0.1983,3077.9,3077.4,0.4517]
[1763544822773,0.6848,3078.1,3077.5,0.4517]
[1763544822986,0.1983,3078.1,3077.5,0.4517]
[1763544824597,0.6848,3078.1,3077.5,0.4517]
[1763544824979,0.1983,3078.1,3077.5,0.4517]
[1763544825386,0.405504,3078.4,3077.6,0.4916]
[1763544826383,0.03198868,3078.6,3077.6,0.4916]
[1763544826592,0.405504,3078.3,3077.6,0.4916]
[1763544827812,0.405504,3078.3,3077.1,0.194]
[1763544827813,0.2474,3077.7,3077.1,0.194]
[1763544827983,0.03198868,3077.6,3077.1,0.001]
[1763544828183,0.4717,3077.2,3077.1,0.001]
[1763544828407,0.7338,3077.2,3077.1,0.001]
[1763544828886,0.4717,3077.2,3077.1,0.001]
[1763544829219,0.405504,3077.9,3077.1,1.1373]
[1763544829585,0.405504,3077.9,3077.1,0.6457]
[1763544829783,0.405504,3078.2,3077.2,0.4916]
[1763544830618,0.03198868,3078.1,3077.2,0.4916]
[1763544830837,0.405504,3078.1,3077.2,0.4916]
[1763544831620,0.4865,3078.2,3077.2,0.4916]
[1763544831621,0.892004,3078.2,3077.2,0.4916]
[1763544831800,0.4865,3078.2,3077.2,0.4916]
[1763544832120,0.03198868,3078.3,3077.2,0.4916]
[1763544832423,0.405504,3078.4,3077.2,0.4916]
[1763544832424,0.4865,3078.2,3077.2,0.4916]
[1763544832784,0.405504,3078.4,3077.2,0.4916]
[1763544832987,0.405504,3078.3,3077.2,0.4916]
[1763544833689,0.4865,3078.3,3077.2,0.4916]
[1763544833889,0.03198868,3078.2,3077.2,0.4916]
[1763544834117,0.4865,3078.3,3077.2,0.4916]
[1763544834490,0.03198868,3078.2,3077.2,0.4916]
[1763544834693,0.405504,3078.1,3077.2,0.4916]
[1763544834922,0.892004,3078.1,3077.2,0.4916]
[1763544836824,0.892004,3078.1,3077.1,0.194]
[1763544836825,0.51848868,3078.0,3077.1,0.001]
[1763544837247,0.1864,3077.9,3077.1,0.001]
[1763544837527,0.2592,3077.2,3077.1,0.001]
[1763544837911,0.7435,3077.2,3077.1,0.001]
[1763544839695,1.149004,3077.2,3077.1,0.001]
[1763544841099,0.7435,3077.2,3077.1,0.001]
[1763544841798,1.149004,3077.2,3077.1,0.001]
[1763544842932,1.18099268,3077.2,3077.1,0.001]
[1763544843132,1.36772606,3077.2,3077.1,0.001]
[1763544843634,1.49806868,3077.2,3077.1,0.001]
[1763544844829,1.46608,3077.2,3077.1,0.001]
[1763544847195,1.33573738,3077.2,3077.1,0.001]
[1763544847646,0.90699264,3078.0,3077.1,0.001]
[1763544847647,0.002,3078.1,3077.7,0.1303]
[1763544847799,0.002,3078.1,3077.2,0.4941]
[1763544847800,0.002,3078.1,3078.0,0.0983]
[1763544847999,0.002,3078.1,3077.1,0.3227344]
[1763544848203,0.002,3078.1,3077.1,0.1925]
[1763544848450,0.002,3078.1,3077.1,0.2908]
[1763544848740,0.4887,3078.0,3077.1,0.1925]
[1763544849044,0.4887,3078.0,3077.1,0.001]
[1763544849346,0.1834,3077.9,3077.1,0.001]
[1763544850124,0.6721,3077.9,3077.1,0.001]
[1763544850525,0.405504,3077.7,3077.1,0.001]
[1763544850747,0.494,3077.2,3077.1,0.001]
[1763544852081,0.9827,3077.2,3077.1,0.001]
[1763544852254,0.9827,3077.2,3076.9,0.001]
[1763544852255,0.405504,3077.1,3076.9,0.001]
[1763544852468,0.494,3077.0,3076.9,0.001]
[1763544852828,0.9827,3077.0,3076.9,0.001]
[1763544853032,1.0871944,3077.0,3076.9,0.001]
[1763544853228,1.388204,3077.0,3076.9,0.001]
[1763544854483,0.4887,3077.4,3076.9,0.001]
[1763544854786,0.405504,3077.3,3076.9,0.001]
[1763544855287,0.4887,3077.2,3076.9,0.001]
[1763544855483,0.405504,3077.7,3076.9,0.001]
[1763544855688,0.894204,3077.7,3076.9,0.001]
[1763544856189,0.405504,3077.5,3076.9,0.001]
[1763544856572,0.4887,3077.5,3076.9,0.001]
[1763544859266,0.405504,3077.4,3076.9,0.001]
[1763544859801,0.4887,3077.3,3076.9,0.001]
[1763544859965,0.407504,3077.8,3076.9,0.001]
[1763544860291,0.4887,3077.7,3076.9,0.001]
[1763544860593,0.494,3077.0,3076.9,0.001]
[1763544860958,0.9827,3077.0,3076.9,0.001]
[1763544862879,1.388204,3077.0,3076.9,0.001]
[1763544863893,0.899504,3077.0,3076.9,0.001]
[1763544864876,0.494,3077.0,3076.9,0.001]
[1763544865192,0.405504,3077.4,3076.9,0.001]
[1763544865700,0.405504,3077.3,3076.9,0.001]
[1763544866068,0.69471457,3077.7,3076.9,0.001]
[1763544866069,0.405504,3077.6,3076.9,0.001]
[1763544866375,0.69471457,3077.7,3076.9,0.001]
[1763544866578,0.20855072,3077.6,3076.9,0.001]
[1763544866773,1.09585472,3077.6,3076.9,0.001]
[1763544866974,0.405504,3077.5,3076.9,0.001]
[1763544867505,0.20855072,3077.6,3076.9,0.001]
[1763544867713,0.61405472,3077.6,3076.9,0.001]
[1763544867869,0.69471457,3077.7,3076.9,0.1003]
[1763544868203,0.0012,3077.8,3076.9,0.1003]
[1763544868576,0.406704,3077.8,3076.9,0.001]
[1763544868888,0.0012,3077.8,3076.9,0.1003]
[1763544881135,0.0012,3077.8,3076.9,0.001]
[1763544881296,0.405504,3077.7,3076.9,0.001]
[1763544881496,0.4663,3077.0,3076.9,0.001]
[1763544882010,0.9424,3077.0,3076.9,0.001]
[1763544883398,0.4761,3077.6,3076.9,0.1007]
[1763544883648,0.405504,3077.5,3076.9,0.001]
[1763544883809,0.406704,3077.8,3076.9,0.001]
[1763544884051,0.882804,3077.8,3076.9,0.001]
[1763544884483,0.4761,3077.7,3076.9,0.001]
[1763544887350,0.0012,3077.8,3076.9,0.1007]
[1763544887893,0.4761,3077.7,3076.9,0.001]
[1763544890971,0.4663,3077.0,3076.9,0.001]
[1763544891378,0.9424,3077.0,3076.9,0.001]
[1763544892005,1.17246423,3077.5,3076.9,0.001]
[1763544892161,0.4761,3077.5,3076.9,0.001]
[1763544892360,0.4761,3077.4,3076.9,0.001]
[1763544892997,0.4655,3077.0,3076.9,0.001]
[1763544895499,0.9416,3077.0,3076.9,0.001]
[1763544895693,0.4655,3077.0,3076.9,0.001]
[1763544900784,0.9416,3077.0,3076.9,0.001]
[1763544901105,0.4655,3077.0,3076.9,0.001]
[1763544901611,0.9416,3077.0,3076.9,0.001]
[1763544904381,0.4663,3077.0,3076.9,0.001]
[1763544904581,0.9424,3077.0,3076.9,0.001]
[1763544906478,0.9444,3077.0,3076.9,0.001]
[1763544907122,0.4683,3077.0,3076.9,0.001]
[1763544907335,0.9444,3077.0,3076.9,0.001]
[1763544907830,1.10862863,3077.0,3076.9,0.001]
[1763544908517,6.67675731,3077.0,3076.9,0.001]
[1763544909024,7.78009226,3077.0,3076.9,0.001]
[1763544915657,7.78009226,3077.0,3076.8,0.001]
[1763544915658,1.31249664,3076.9,3076.8,0.001]
[1763544915814,3.09362759,3076.9,3076.8,0.001]
[1763544916019,3.96602637,3076.9,3076.8,0.001]
[1763544916278,2.28149268,3077.8,3076.9,0.1005]
[1763544916553,0.002,3078.5,3078.2,0.405504]
[1763544916761,0.002,3078.5,3077.4,0.3258]
[1763544916979,0.002,3078.5,3077.5,0.1005]
[1763544917174,0.002,3078.5,3077.9,4.66113604]
[1763544917318,0.002,3078.5,3078.4,0.1005]
[1763544917748,0.002,3078.5,3078.4,0.201]
[1763544917929,0.0012,3078.5,3078.4,0.201]
[1763544918556,0.0012,3078.5,3078.4,0.1005]
[1763544920338,0.0012,3078.5,3078.4,0.201]
[1763544920539,0.0012,3078.5,3078.4,0.1005]
[1763544920854,0.0012,3078.5,3077.7,0.1005]
[1763544921042,0.0012,3078.5,3077.3,0.1005]
[1763544921357,0.0012,3078.5,3077.4,0.1005]
[1763544924738,0.0012,3078.5,3077.4,0.1015]
[1763544925729,0.4668,3078.4,3077.4,0.001]
[1763544927664,0.0012,3078.5,3077.4,0.001]
[1763544927963,0.0012,3078.5,3077.5,0.1005]
[1763544928262,0.0012,3078.5,3077.4,0.1015]
[1763544931642,0.468,3078.5,3077.4,0.1015]
[1763544931841,0.468,3078.5,3077.4,0.001]
[1763544932938,0.0012,3078.5,3077.5,0.1006]
[1763544935170,0.0012,3078.5,3078.4,0.1006]
[1763544935541,0.4972,3078.5,3077.6,0.1006]
[1763544939955,0.992,3078.5,3077.6,0.1006]
[1763544942667,0.4972,3078.5,3077.6,0.1006]
[1763544942867,0.4964,3078.5,3077.6,0.1006]
[1763544945773,0.0004,3078.5,3077.6,0.1006]
[1763544946087,0.0004,3078.5,3078.4,0.1006]
[1763544946464,0.0004,3078.5,3078.4,0.2012]
[1763544946672,0.0004,3078.5,3078.4,2.88352663]
[1763544946960,0.0004,3078.5,3078.4,3.79018122]
[1763544947159,0.0004,3078.5,3078.4,0.1006]
[1763544947569,0.0004,3078.5,3077.7,0.1006]
[1763544947776,0.0004,3078.5,3077.6,0.1006]
[1763544947981,0.0004,3078.5,3078.4,0.1006]
[1763544951599,0.0004,3078.5,3078.4,0.2012]
[1763544951895,0.0004,3078.5,3077.9,0.1006]
[1763544952192,0.0004,3078.5,3078.4,0.1006]
[1763544954296,0.0004,3078.5,3078.4,0.2012]
[1763544954496,0.0004,3078.5,3077.7,0.1006]
[1763544954685,0.0004,3078.5,3078.4,0.1006]
[1763544958304,0.0004,3078.5,3077.8,0.1006]
[1763544958817,0.0004,3078.5,3077.6,0.4264]
[1763544959037,0.0004,3078.5,3077.7,0.1006]
[1763544961896,0.0004,3078.5,3078.4,0.1006]
[1763544962302,0.0004,3078.5,3077.8,1.00759264]
[1763544962622,0.0004,3078.5,3077.9,0.48723926]
[1763544962824,0.0004,3078.5,3077.9,0.58783926]
[1763544963197,0.0004,3078.5,3078.4,0.1006]
[1763544963896,0.0004,3078.5,3078.4,0.2012]
[1763544965398,0.0004,3078.5,3078.4,0.1006]
[1763544965828,0.4778,3078.5,3077.9,0.81303926]
[1763544966030,0.4778,3078.5,3078.0,0.17200319]
[1763544966404,0.0004,3078.5,3078.4,0.1006]
[1763544967598,0.0004,3078.5,3078.4,0.2012]
[1763544967902,0.5196,3078.7,3078.4,0.2012]
[1763544968103,0.5196,3078.7,3078.6,0.1006]
[1763544969733,0.9874,3078.7,3078.0,0.17200319]
[1763544970904,1.4425,3078.7,3078.0,0.17200319]
[1763544971100,0.9874,3078.7,3078.0,0.17200319]
[1763544972134,0.9874,3078.7,3078.0,0.27260319]
[1763544972434,0.9874,3078.7,3078.6,0.1006]
[1763544972435,0.5196,3078.7,3078.6,0.1006]
[1763544973312,1.4425,3078.7,3078.0,0.17200319]
[1763544973513,0.5196,3078.7,3078.0,0.17200319]
[1763544973829,0.5196,3078.7,3078.6,0.1006]
[1763544974026,0.5196,3078.7,3078.1,0.1006]
[1763544975319,0.5196,3078.7,3078.0,0.17200319]
[1763544975534,0.5196,3078.7,3078.0,0.27260319]
[1763544976038,0.5196,3078.7,3078.0,0.17200319]
[1763544976343,0.5196,3078.7,3078.1,0.1006]
[1763544976539,0.5196,3078.7,3078.6,0.506104]
[1763544976754,0.5196,3078.7,3078.6,2.26548884]
[1763544977044,0.5196,3078.7,3078.6,0.9529922]
[1763544977241,0.5196,3078.7,3078.6,0.4264]
[1763544977406,0.5196,3078.7,3078.6,0.527]
[1763544978030,0.5196,3078.7,3078.6,0.4264]